fUST/lending_fUST_20240421
["ID","MTS","AMOUNT","RATE_DAILY","PERIOD"]
[323118588,1713682243477,-500.0,0.00021917,2]
[323118590,1713682243489,-500.0,0.00021917,2]
[323118592,1713682243499,-500.0,0.00021917,2]
[323118594,1713682243508,-500.0,0.00021917,2]
[323118596,1713682243517,-522.19498796,0.00021917,2]
[323118598,1713682243527,-1937.611243,0.00021917,2]
[323118600,1713682243537,-1937.611243,0.00021917,2]
[323118602,1713682243546,-1937.611243,0.00021917,2]
[323118604,1713682243555,-155.009809,0.00021917,2]
[323118605,1713682243564,-500.0,0.00021917,2]
[323118606,1713682243573,-500.0,0.00021917,2]
[323118608,1713682243583,-1937.611243,0.00021917,2]
[323118610,1713682243592,-1937.611243,0.00021917,2]
[323118612,1713682243602,-650.2,0.00021917,2]
[323118614,1713682243611,-1937.611243,0.00021917,2]
[323118616,1713682243620,-500.0,0.00021917,2]
[323118618,1713682243629,-500.0,0.00021917,2]
[323118619,1713682243640,-501.73691034,0.00021917,2]
[323118621,1713682243649,-2037.92,0.00021917,2]
[323118623,1713682243658,-4628.55,0.00021917,2]
[323118625,1713682243668,-2037.92,0.00021917,2]
[323118626,1713682243677,-2037.92,0.00021917,2]
[323118627,1713682243687,-2037.92,0.00021917,2]
[323118628,1713682243697,-500.0,0.00021917,2]
[323118629,1713682243706,-2037.92,0.00021917,2]
[323118630,1713682243715,-2037.92,0.00021917,2]
[323118631,1713682243725,-2037.92,0.00021917,2]
[323118632,1713682243735,-2037.92,0.00021917,2]
[323118633,1713682243745,-2037.92,0.00021917,2]
[323118634,1713682243754,-151.0,0.00021917,2]
[323118635,1713682243763,-151.0,0.00021917,2]
[323118636,1713682243773,-151.0,0.00021917,2]
[323118637,1713682243782,-500.0,0.00021917,2]
[323118638,1713682243791,-542.67199493,0.00021917,2]
[323118639,1713682243801,-500.0,0.00021917,2]
[323118640,1713682243810,-1011.96,0.00021917,2]
[323118641,1713682243820,-8470.02,0.00021917,2]
[323118642,1713682243829,-151.0,0.00021917,2]
[323118644,1713682243838,-500.0,0.00021917,2]
[323118646,1713682243847,-500.0,0.00021917,2]
[323118648,1713682243857,-6566.31,0.00021917,2]
[323118650,1713682243866,-195.046545,0.00021917,2]
[323118652,1713682243875,-502.14164907,0.00021917,2]
[323118654,1713682243885,-500.0,0.00021917,2]
[323118656,1713682243894,-500.0,0.00021917,2]
[323118658,1713682243903,-1558.88,0.00021917,2]
[323118660,1713682243912,-1397.36,0.00021917,2]
[323118662,1713682243922,-420.4344298,0.00021917,2]
[323118664,1713682243930,-500.0,0.00021917,2]
[323118665,1713682243939,-591.28080433,0.00021917,2]
[323118668,1713682243949,-500.0,0.00021917,2]
[323118672,1713682243958,-2000.0,0.00021917,2]
[323118675,1713682243967,-500.0,0.00021917,2]
[323118677,1713682243977,-500.0,0.00021917,2]
[323118679,1713682243987,-500.0,0.00021917,2]
[323118681,1713682243996,-500.0,0.00021917,2]
[323118683,1713682244005,-554.09,0.00021917,2]
[323118685,1713682244015,-1938.71,0.00021917,2]
[323118687,1713682244024,-151.0,0.00021917,2]
[323118690,1713682244033,-151.0,0.00021917,2]
[323118692,1713682244043,-500.0,0.00021917,2]
[323118694,1713682244052,-417.0,0.00021951,2]
[323118696,1713682244061,-150.0,0.00021951,2]
[323118698,1713682244070,-500.0,0.00021999,2]
[323118700,1713682244079,-2343.35,0.00021999,2]
[323118702,1713682244088,-2251.70143452,0.00022,2]
[323118704,1713682244097,-12268.77545733,0.00022,2]
[323118705,1713682244105,-158.99683336,0.00022,2]
[323118708,1713682244115,-153.0,0.00022,2]
[323118710,1713682244124,-308.3749949,0.00022,2]
[323118711,1713682244133,-153.0,0.00022,2]
[323118714,1713682244142,-153.0,0.00022,2]
[323118715,1713682244153,-153.0,0.00022,2]
[323118718,1713682244165,-306.0,0.00022,2]
[323118720,1713682244176,-151.0,0.00022,2]
[323118722,1713682244186,-153.0,0.00022,2]
[323118723,1713682244194,-203.4958838,0.00022,2]
[323118725,1713682244204,-153.0,0.00022,2]
[323118727,1713682244213,-153.283008,0.00022,2]
[323118729,1713682244223,-153.0,0.00022,2]
[323118731,1713682244235,-184.020604,0.00022,2]
[323118733,1713682244244,-184.020604,0.00022,2]
[323118735,1713682244253,-151.0,0.00022,2]
[323118737,1713682244262,-203.4958838,0.00022,2]
[323118739,1713682244271,-153.0,0.00022,2]
[323118742,1713682244281,-151.0,0.00022,2]
[323118744,1713682244290,-1000.0,0.000221,2]
[323118746,1713682244299,-153.0,0.000221,2]
[323118748,1713682244309,-153.0,0.000221,2]
[323118750,1713682244319,-153.0,0.000221,2]
[323118752,1713682244329,-155.4646276,0.00022188,2]
[323118753,1713682244339,-526.93101703,0.00022188,2]
[323118756,1713682244348,-500.0,0.0002219,2]
[323118758,1713682244358,-500.0,0.0002219,2]
[323118760,1713682244367,-500.0,0.0002219,2]
[323118761,1713682244376,-500.0,0.0002219,2]
[323118762,1713682244385,-500.0,0.0002219,2]
[323118763,1713682244394,-500.0,0.0002219,2]
[323118764,1713682244403,-500.0,0.0002219,2]
[323118765,1713682244413,-500.0,0.0002219,2]
[323118766,1713682244422,-500.0,0.0002219,2]
[323118767,1713682244430,-500.0,0.0002219,2]
[323118768,1713682244502,-500.0,0.0002219,2]
[323118769,1713682244518,-500.0,0.0002219,2]
[323118770,1713682244527,-500.0,0.0002219,2]
[323118771,1713682244536,-466.94008908,0.0002219,2]
[323118772,1713682244545,-414.250954,0.0002219,2]
[323118773,1713682244554,-414.250954,0.0002219,2]
[323118774,1713682244563,-2343.35,0.0002219,2]
[323118775,1713682244573,-2343.35,0.0002219,2]
[323118776,1713682244583,-2343.35,0.0002219,2]
[323118778,1713682244592,-2343.35,0.0002219,2]
[323118780,1713682244602,-2343.35,0.0002219,2]
[323118782,1713682244611,-2343.35,0.0002219,2]
[323118783,1713682244620,-2343.35,0.0002219,2]
[323118785,1713682244629,-2343.35,0.0002219,2]
[323118786,1713682244638,-166.722068,0.0002219,2]
[323118787,1713682244647,-2343.35,0.0002219,2]
[323118788,1713682244656,-2343.35,0.0002219,2]
[323118789,1713682244664,-2343.49187847,0.0002219,2]
[323118790,1713682244673,-166.722068,0.0002219,2]
[323118791,1713682244683,-2037.92,0.0002219,2]
[323118792,1713682244692,-2037.92,0.0002219,2]
[323118793,1713682244702,-2037.92,0.0002219,2]
[323118794,1713682244711,-2037.92,0.0002219,2]
[323118795,1713682244721,-2037.92,0.0002219,2]
[323118796,1713682244730,-500.0,0.00022191,2]
[323118797,1713682244740,-500.0,0.00022191,2]
[323118798,1713682244751,-500.0,0.00022191,2]
[323118799,1713682244760,-500.0,0.00022191,2]
[323118800,1713682244770,-500.0,0.00022191,2]
[323118802,1713682244779,-500.0,0.00022191,2]
[323118804,1713682244788,-500.0,0.00022191,2]
[323118805,1713682244797,-500.0,0.00022191,2]
[323118807,1713682244806,-500.0,0.00022191,2]
[323118809,1713682244815,-500.0,0.00022191,2]
[323118811,1713682244824,-500.0,0.00022191,2]
[323118813,1713682244833,-500.0,0.00022191,2]
[323118815,1713682244842,-500.0,0.00022191,2]
[323118817,1713682244851,-500.0,0.00022191,2]
[323118819,1713682244860,-500.0,0.00022191,2]
[323118821,1713682244869,-500.0,0.00022191,2]
[323118823,1713682244878,-151.0,0.00022191,2]
[323118825,1713682244887,-500.0,0.00022191,2]
[323118827,1713682244896,-500.0,0.00022191,2]
[323118829,1713682244904,-500.0,0.00022191,2]
[323118831,1713682244913,-500.0,0.00022191,2]
[323118833,1713682244922,-500.0,0.00022191,2]
[323118835,1713682244932,-368.11501402,0.00022191,2]
[323118837,1713682244941,-500.0,0.00022191,2]
[323118839,1713682244950,-500.0,0.00022191,2]
[323118841,1713682244959,-500.0,0.00022191,2]
[323118843,1713682244968,-895.86,0.00022191,2]
[323118845,1713682244977,-279.80392464,0.00022191,2]
[323118847,1713682244988,-500.0,0.00022191,2]
[323118849,1713682244997,-528.80425813,0.00022191,2]
[323118851,1713682245006,-500.0,0.00022191,2]
[323118853,1713682245015,-500.0,0.00022191,2]
[323118855,1713682245024,-500.0,0.00022191,2]
[323118857,1713682245033,-500.0,0.00022191,2]
[323118859,1713682245041,-500.0,0.00022191,2]
[323118861,1713682245050,-500.0,0.00022191,2]
[323118863,1713682245059,-500.0,0.00022191,2]
[323118864,1713682245069,-500.0,0.00022191,2]
[323118866,1713682245078,-500.0,0.00022191,2]
[323118868,1713682245087,-500.0,0.00022191,2]
[323118870,1713682245096,-500.0,0.00022191,2]
[323118872,1713682245105,-500.0,0.00022191,2]
[323118874,1713682245114,-500.0,0.00022191,2]
[323118876,1713682245122,-500.0,0.00022191,2]
[323118878,1713682245131,-500.0,0.00022191,2]
[323118880,1713682245140,-500.0,0.00022191,2]
[323118882,1713682245149,-500.0,0.00022191,2]
[323118884,1713682245157,-500.0,0.00022191,2]
[323118886,1713682245166,-314.52389294,0.00022191,2]
[323118888,1713682245175,-465.0,0.00022191,2]
[323118890,1713682245184,-500.0,0.00022191,2]
[323118892,1713682245193,-508.06546708,0.00022191,2]
[323118894,1713682245202,-500.0,0.00022191,2]
[323118896,1713682245211,-151.0,0.00022191,2]
[323118898,1713682245220,-539.54,0.00022191,2]
[323118900,1713682245229,-151.0,0.00022191,2]
[323118902,1713682245242,-500.0,0.00022191,2]
[323118904,1713682245251,-500.0,0.00022191,2]
[323118906,1713682245260,-500.0,0.00022191,2]
[323118908,1713682245269,-500.0,0.00022191,2]
[323118910,1713682245278,-500.0,0.00022191,2]
[323118912,1713682245287,-500.0,0.00022191,2]
[323118914,1713682245297,-500.0,0.00022191,2]
[323118916,1713682245307,-384.65018741,0.00022191,2]
[323118918,1713682245317,-500.0,0.00022191,2]
[323118920,1713682245326,-500.0,0.00022191,2]
[323118922,1713682245334,-500.0,0.00022191,2]
[323118924,1713682245343,-500.0,0.00022191,2]
[323118926,1713682245352,-2897.85,0.00022191,2]
[323118927,1713682245361,-500.0,0.00022191,2]
[323118929,1713682245370,-500.0,0.00022191,2]
[323118931,1713682245379,-500.0,0.00022191,2]
[323118933,1713682245388,-668.25,0.00022191,2]
[323118935,1713682245398,-500.0,0.00022191,2]
[323118937,1713682245407,-377.60784565,0.00022191,2]
[323118939,1713682245416,-500.0,0.00022191,2]
[323118941,1713682245425,-500.0,0.00022191,2]
[323118943,1713682245435,-500.0,0.00022191,2]
[323118945,1713682245443,-500.0,0.00022191,2]
[323118947,1713682245452,-287.27426237,0.00022191,2]
[323118949,1713682245462,-500.0,0.00022191,2]
[323118951,1713682245471,-500.0,0.00022191,2]
[323118953,1713682245480,-500.0,0.00022191,2]
[323118955,1713682245490,-500.0,0.00022191,2]
[323118957,1713682245499,-151.0,0.00022191,2]
[323118959,1713682245508,-151.0,0.00022191,2]
[323118961,1713682245517,-151.0,0.00022191,2]
[323118963,1713682245527,-500.0,0.00022191,2]
[323118965,1713682245537,-500.0,0.00022191,2]
[323118967,1713682245546,-303.44558414,0.00022191,2]
[323118969,1713682245555,-500.0,0.00022191,2]
[323118971,1713682245564,-926.17,0.00022191,2]
[323118973,1713682245574,-155.14778505,0.00022191,2]
[323118975,1713682245583,-500.0,0.00022191,2]
[323118977,1713682245592,-500.0,0.00022191,2]
[323118979,1713682245601,-500.0,0.00022191,2]
[323118981,1713682245610,-433.03943025,0.00022191,2]
[323118983,1713682245619,-500.0,0.00022191,2]
[323118984,1713682245628,-600.82,0.00022191,2]
[323118986,1713682245639,-500.0,0.00022191,2]
[323118988,1713682245650,-500.0,0.00022191,2]
[323118990,1713682245659,-1032.11,0.00022191,2]
[323118992,1713682245668,-173.465923,0.00022191,2]
[323118994,1713682245677,-414.40247208,0.00022191,2]
[323118996,1713682245686,-500.0,0.00022191,2]
[323118998,1713682245696,-500.0,0.00022191,2]
[323119000,1713682245705,-500.0,0.00022191,2]
[323119002,1713682245714,-500.0,0.00022191,2]
[323119004,1713682245723,-500.0,0.00022191,2]
[323119006,1713682245732,-1200.37,0.00022191,2]
[323119008,1713682245741,-212.91319268,0.00022191,2]
[323119010,1713682245750,-751.54,0.00022191,2]
[323119012,1713682245761,-500.0,0.00022191,2]
[323119014,1713682245770,-500.0,0.00022191,2]
[323119024,1713682245844,-500.0,0.00022191,2]
[323119026,1713682245854,-500.0,0.00022191,2]
[323119028,1713682245863,-500.0,0.00022191,2]
[323119029,1713682245872,-500.0,0.00022191,2]
[323119031,1713682245881,-823.34,0.00022191,2]
[323119033,1713682245890,-500.0,0.00022191,2]
[323119035,1713682245900,-500.0,0.00022191,2]
[323119037,1713682245909,-500.0,0.00022191,2]
[323119039,1713682245918,-500.0,0.00022191,2]
[323119041,1713682245927,-500.0,0.00022191,2]
[323119043,1713682245937,-500.0,0.00022191,2]
[323119045,1713682245946,-500.0,0.00022191,2]
[323119047,1713682245955,-500.0,0.00022191,2]
[323119049,1713682245964,-500.0,0.00022191,2]
[323119051,1713682245973,-151.0,0.00022191,2]
[323119053,1713682245984,-151.0,0.00022191,2]
[323119055,1713682245994,-151.0,0.00022191,2]
[323119057,1713682246003,-1463.78,0.00022191,2]
[323119059,1713682246012,-980.47,0.00022191,2]
[323119061,1713682246021,-1041.63,0.00022191,2]
[323119063,1713682246030,-538.00528678,0.00022191,2]
[323119065,1713682246039,-500.0,0.00022191,2]
[323119067,1713682246048,-430.83998372,0.00022191,2]
[323119069,1713682246057,-500.0,0.00022191,2]
[323119071,1713682246066,-500.0,0.00022191,2]
[323119073,1713682246075,-500.0,0.00022191,2]
[323119076,1713682246084,-500.0,0.00022191,2]
[323119078,1713682246093,-1235.19,0.00022191,2]
[323119080,1713682246102,-550.81,0.00022191,2]
[323119082,1713682246111,-500.0,0.00022191,2]
[323119084,1713682246120,-497.19031183,0.00022191,2]
[323119086,1713682246129,-262.07179314,0.00022191,2]
[323119088,1713682246138,-396.98824415,0.00022191,2]
[323119090,1713682246147,-500.0,0.00022191,2]
[323119092,1713682246157,-500.0,0.00022191,2]
[323119094,1713682246166,-500.0,0.00022191,2]
[323119097,1713682246175,-1709.09,0.00022191,2]
[323119100,1713682246184,-500.0,0.00022191,2]
[323119102,1713682246193,-500.0,0.00022191,2]
[323119104,1713682246202,-500.0,0.00022191,2]
[323119106,1713682246211,-500.0,0.00022191,2]
[323119108,1713682246220,-500.0,0.00022191,2]
[323119110,1713682246229,-500.0,0.00022191,2]
[323119112,1713682246241,-500.0,0.00022191,2]
[323119114,1713682246250,-2893.04,0.00022191,2]
[323119116,1713682246259,-500.0,0.00022191,2]
[323119118,1713682246268,-500.0,0.00022191,2]
[323119120,1713682246278,-500.0,0.00022191,2]
[323119122,1713682246287,-500.0,0.00022191,2]
[323119124,1713682246296,-500.0,0.00022191,2]
[323119126,1713682246305,-2003.26,0.00022191,2]
[323119128,1713682246315,-500.0,0.00022191,2]
[323119130,1713682246324,-500.0,0.00022191,2]
[323119132,1713682246333,-500.0,0.00022191,2]
[323119133,1713682246342,-500.0,0.00022191,2]
[323119135,1713682246351,-500.0,0.00022191,2]
[323119137,1713682246360,-500.0,0.00022191,2]
[323119139,1713682246369,-500.0,0.00022191,2]
[323119141,1713682246378,-1858.5,0.00022191,2]
[323119143,1713682246388,-859.85,0.00022191,2]
[323119145,1713682246396,-500.0,0.00022191,2]
[323119147,1713682246406,-500.0,0.00022191,2]
[323119149,1713682246415,-500.0,0.00022191,2]
[323119151,1713682246424,-500.0,0.00022191,2]
[323119153,1713682246433,-500.0,0.00022191,2]
[323119155,1713682246442,-1129.46,0.00022191,2]
[323119157,1713682246451,-500.0,0.00022191,2]
[323119159,1713682246460,-2335.39,0.00022191,2]
[323119161,1713682246469,-500.0,0.00022191,2]
[323119163,1713682246478,-500.0,0.00022191,2]
[323119164,1713682246488,-500.0,0.00022191,2]
[323119166,1713682246497,-500.0,0.00022191,2]
[323119168,1713682246506,-500.0,0.00022191,2]
[323119170,1713682246515,-500.0,0.00022191,2]
[323119172,1713682246524,-509.33844751,0.00022191,2]
[323119174,1713682246533,-500.0,0.00022191,2]
[323119176,1713682246542,-500.0,0.00022191,2]
[323119177,1713682246551,-500.0,0.00022191,2]
[323119178,1713682246560,-500.0,0.00022191,2]
[323119179,1713682246569,-808.13,0.00022191,2]
[323119180,1713682246579,-847.92,0.00022191,2]
[323119181,1713682246588,-500.0,0.00022191,2]
[323119182,1713682246597,-500.0,0.00022191,2]
[323119183,1713682246606,-500.0,0.00022191,2]
[323119184,1713682246615,-500.0,0.00022191,2]
[323119185,1713682246624,-349.55688462,0.00022191,2]
[323119186,1713682246634,-500.0,0.00022191,2]
[323119187,1713682246642,-329.93001015,0.00022191,2]
[323119188,1713682246654,-2528.35,0.00022191,2]
[323119189,1713682246663,-500.0,0.00022191,2]
[323119190,1713682246672,-500.0,0.00022191,2]
[323119191,1713682246681,-184.020604,0.00022191,2]
[323119192,1713682246691,-184.020604,0.00022191,2]
[323119193,1713682246700,-184.020604,0.00022191,2]
[323119194,1713682246710,-502.21066725,0.00022191,2]
[323119195,1713682246719,-500.0,0.00022191,2]
[323119196,1713682246728,-500.0,0.00022191,2]
[323119197,1713682246739,-500.0,0.00022191,2]
[323119198,1713682246748,-1137.12,0.00022191,2]
[323119199,1713682246758,-500.0,0.00022191,2]
[323119200,1713682246768,-184.020604,0.00022191,2]
[323119201,1713682246777,-184.020604,0.00022191,2]
[323119202,1713682246786,-184.020604,0.00022191,2]
[323119203,1713682246797,-500.0,0.00022191,2]
[323119204,1713682246807,-638.25457168,0.00022191,2]
[323119205,1713682246816,-414.250954,0.00022191,2]
[323119207,1713682246825,-414.250954,0.00022191,2]
[323119208,1713682246834,-414.250954,0.00022191,2]
[323119210,1713682246843,-500.0,0.00022191,2]
[323119212,1713682246853,-500.0,0.00022191,2]
[323119214,1713682246862,-151.0,0.00022191,2]
[323119215,1713682246871,-151.0,0.00022191,2]
[323119217,1713682246880,-414.250954,0.00022191,2]
[323119219,1713682246889,-151.0,0.00022191,2]
[323119221,1713682246898,-414.250954,0.00022191,2]
[323119222,1713682246907,-414.250954,0.00022191,2]
[323119224,1713682246917,-1992.64,0.00022191,2]
[323119226,1713682246926,-1173.14,0.00022191,2]
[323119227,1713682246936,-500.0,0.00022191,2]
[323119228,1713682246945,-500.0,0.00022191,2]
[323119229,1713682246954,-500.0,0.00022191,2]
[323119230,1713682246963,-500.0,0.00022191,2]
[323119231,1713682246972,-500.0,0.00022191,2]
[323119232,1713682246981,-5785.47,0.00022191,2]
[323119233,1713682246992,-500.0,0.00022191,2]
[323119234,1713682247001,-1000.0,0.00022191,2]
[323119235,1713682247010,-1195.65,0.00022191,2]
[323119236,1713682247080,-500.0,0.00022191,2]
[323119237,1713682247089,-500.0,0.00022191,2]
[323119238,1713682247099,-1082.6,0.00022191,2]
[323119239,1713682247108,-500.0,0.00022191,2]
[323119240,1713682247117,-500.0,0.00022191,2]
[323119241,1713682247126,-865.36,0.00022191,2]
[323119242,1713682247136,-585.82,0.00022191,2]
[323119243,1713682247145,-513.23,0.00022191,2]
[323119244,1713682247154,-500.0,0.00022191,2]
[323119245,1713682247163,-920.24,0.00022191,2]
[323119246,1713682247172,-501.47424012,0.00022191,2]
[323119247,1713682247182,-500.0,0.00022191,2]
[323119248,1713682247191,-166.722068,0.00022191,2]
[323119249,1713682247200,-166.722068,0.00022191,2]
[323119250,1713682247211,-166.722068,0.00022191,2]
[323119251,1713682247221,-500.0,0.00022191,2]
[323119252,1713682247231,-501.39566353,0.00022191,2]
[323119253,1713682247243,-500.0,0.00022191,2]
[323119254,1713682247252,-166.722068,0.00022191,2]
[323119255,1713682247263,-166.722068,0.00022191,2]
[323119256,1713682247273,-166.722068,0.00022191,2]
[323119257,1713682247282,-500.0,0.00022191,2]
[323119258,1713682247291,-500.0,0.00022191,2]
[323119259,1713682247301,-504.53894851,0.00022191,2]
[323119260,1713682247312,-500.0,0.00022191,2]
[323119261,1713682247321,-500.0,0.00022191,2]
[323119262,1713682247331,-626.07,0.00022191,2]
[323119263,1713682247341,-500.0,0.00022191,2]
[323119264,1713682247350,-500.0,0.00022191,2]
[323119265,1713682247360,-829.79,0.00022191,2]
[323119266,1713682247405,-500.0,0.00022191,2]
[323119267,1713682247414,-500.0,0.00022191,2]
[323119268,1713682247424,-685.85,0.00022191,2]
[323119269,1713682247434,-3764.97,0.00022191,2]
[323119270,1713682247445,-924.74,0.00022191,2]
[323119271,1713682247454,-500.0,0.00022191,2]
[323119272,1713682247464,-500.0,0.00022191,2]
[323119273,1713682247473,-477.4125913,0.00022191,2]
[323119274,1713682247482,-253.21526136,0.00022191,2]
[323119275,1713682247493,-500.0,0.00022191,2]
[323119276,1713682247503,-500.0,0.00022191,2]
[323119277,1713682247512,-500.0,0.00022191,2]
[323119278,1713682247522,-3553.7,0.00022191,2]
[323119279,1713682247532,-390.135278,0.00022191,2]
[323119280,1713682247542,-390.135278,0.00022191,2]
[323119281,1713682247550,-390.135278,0.00022191,2]
[323119282,1713682247560,-501.16009554,0.00022191,2]
[323119283,1713682247569,-390.135278,0.00022191,2]
[323119284,1713682247578,-500.0,0.00022191,2]
[323119285,1713682247587,-500.0,0.00022191,2]
[323119286,1713682247596,-390.135278,0.00022191,2]
[323119287,1713682247605,-390.135278,0.00022191,2]
[323119288,1713682247614,-390.135278,0.00022191,2]
[323119289,1713682247623,-390.135278,0.00022191,2]
[323119290,1713682247632,-500.0,0.00022191,2]
[323119291,1713682247644,-595.08203962,0.00022191,2]
[323119292,1713682247653,-500.0,0.00022191,2]
[323119293,1713682247662,-567.17367909,0.00022191,2]
[323119294,1713682247671,-500.0,0.00022191,2]
[323119295,1713682247679,-500.0,0.00022191,2]
[323119296,1713682247689,-500.0,0.00022191,2]
[323119297,1713682247699,-152.8349004,0.00022191,2]
[323119298,1713682247708,-401.93840986,0.00022191,2]
[323119299,1713682247717,-500.0,0.00022191,2]
[323119300,1713682247727,-3076.51,0.00022191,2]
[323119301,1713682247737,-2283.51,0.00022191,2]
[323119302,1713682247746,-293.39159371,0.00022191,2]
[323119303,1713682247755,-332.66510395,0.00022191,2]
[323119304,1713682247765,-500.0,0.00022191,2]
[323119305,1713682247776,-261.00594137,0.00022191,2]
[323119306,1713682247786,-500.0,0.00022191,2]
[323119307,1713682247796,-545.24,0.00022191,2]
[323119308,1713682247805,-501.12601456,0.00022191,2]
[323119309,1713682247815,-500.0,0.00022191,2]
[323119310,1713682247824,-524.00404864,0.00022191,2]
[323119311,1713682247834,-500.0,0.00022191,2]
[323119312,1713682247844,-500.0,0.00022191,2]
[323119313,1713682247853,-506.65227835,0.00022191,2]
[323119314,1713682247862,-605.36,0.00022191,2]
[323119315,1713682247871,-500.0,0.00022191,2]
[323119316,1713682247880,-500.0,0.00022191,2]
[323119317,1713682247889,-500.0,0.00022191,2]
[323119318,1713682247898,-500.0,0.00022191,2]
[323119319,1713682247907,-500.0,0.00022191,2]
[323119320,1713682247916,-500.0,0.00022191,2]
[323119321,1713682247925,-500.0,0.00022191,2]
[323119322,1713682247934,-2074.47,0.00022191,2]
[323119323,1713682247943,-500.0,0.00022191,2]
[323119324,1713682247953,-514.78746748,0.00022191,2]
[323119325,1713682247962,-55793.57,0.00022191,2]
[323119326,1713682247971,-502.12625252,0.00022191,2]
[323119327,1713682247980,-500.0,0.00022191,2]
[323119328,1713682247990,-500.0,0.00022191,2]
[323119329,1713682248000,-367.11564795,0.00022191,2]
[323119330,1713682248009,-571.08,0.00022191,2]
[323119331,1713682248018,-382.52497473,0.00022191,2]
[323119332,1713682248027,-641.6,0.00022191,2]
[323119333,1713682248036,-500.0,0.00022191,2]
[323119334,1713682248045,-500.0,0.00022191,2]
[323119335,1713682248054,-500.0,0.00022191,2]
[323119336,1713682248063,-500.0,0.00022191,2]
[323119337,1713682248072,-500.0,0.00022191,2]
[323119338,1713682248081,-384.7920932,0.00022191,2]
[323119339,1713682248090,-2161.83,0.00022191,2]
[323119340,1713682248099,-500.0,0.00022191,2]
[323119341,1713682248109,-542.23,0.00022191,2]
[323119342,1713682248118,-3661.29,0.00022191,2]
[323119343,1713682248129,-500.0,0.00022191,2]
[323119344,1713682248139,-500.0,0.00022191,2]
[323119345,1713682248150,-500.0,0.00022191,2]
[323119346,1713682248159,-500.0,0.00022191,2]
[323119347,1713682248168,-500.0,0.00022191,2]
[323119348,1713682248177,-1937.611243,0.00022191,2]
[323119349,1713682248186,-1937.611243,0.00022191,2]
[323119350,1713682248195,-1937.611243,0.00022191,2]
[323119351,1713682248205,-1937.611243,0.00022191,2]
[323119352,1713682248215,-425.84614634,0.00022191,2]
[323119353,1713682248285,-500.0,0.00022191,2]
[323119354,1713682248295,-650.2,0.00022191,2]
[323119355,1713682248306,-536.54213348,0.00022191,2]
[323119356,1713682248317,-1937.611243,0.00022191,2]
[323119357,1713682248328,-1937.611243,0.00022191,2]
[323119358,1713682248338,-1937.611243,0.00022191,2]
[323119359,1713682248347,-500.0,0.00022191,2]
[323119360,1713682248357,-1937.611243,0.00022191,2]
[323119361,1713682248366,-4628.55,0.00022191,2]
[323119362,1713682248375,-500.0,0.00022191,2]
[323119363,1713682248385,-244.867374,0.00022191,2]
[323119364,1713682248394,-500.0,0.00022191,2]
[323119365,1713682248403,-500.0,0.00022191,2]
[323119366,1713682248413,-1011.96,0.00022191,2]
[323119367,1713682248422,-8470.02,0.00022191,2]
[323119368,1713682248431,-151.0,0.00022191,2]